bitfinex/quotes_BTCUSD_20210101
["timestamp","ask_amount","ask_price","bid_price","bid_amount"]
[1609500913818,0.08,29295.0,29283.0,0.68280569]
[1609500914527,0.24035325,29294.0,29283.0,0.68280569]
[1609500914720,0.24035325,29294.0,29285.0,8.026555]
[1609500914721,0.39116578,29294.0,29285.0,8.026555]
[1609500914923,0.15081253,29294.0,29286.0,0.00040569]
[1609500915218,0.01081253,29294.0,29286.0,0.00040569]
[1609500915820,0.01081253,29294.0,29286.0,0.99040569]
[1609500916022,0.01081253,29294.0,29286.0,0.98540569]
[1609500916644,0.09081253,29294.0,29285.0,9.11398185]
[1609500916938,0.09081253,29294.0,29286.0,1.27040569]
[1609500917142,0.01081253,29294.0,29286.0,1.27040569]
[1609500917842,0.09081253,29294.0,29286.0,0.285]
[1609500918339,0.01081253,29294.0,29286.0,0.285]
[1609500918544,0.09081253,29294.0,29287.0,0.925]
[1609500919047,0.01081253,29294.0,29287.0,0.925]
[1609500919648,0.01081253,29294.0,29288.0,0.565]
[1609500919885,0.01081253,29294.0,29287.0,0.00038871]
[1609500920045,0.01081253,29294.0,29287.0,0.98540569]
[1609500920246,0.01081253,29294.0,29286.0,0.9857944]
[1609500921148,0.01081253,29294.0,29286.0,0.00038871]
[1609500921652,0.08,29293.0,29286.0,0.00038871]
[1609500922867,1.25,29292.0,29285.0,8.02543371]
[1609500923071,0.08,29291.0,29286.0,0.465]
[1609500923271,0.08,29291.0,29285.0,8.02543371]
[1609500924568,0.08,29293.0,29285.0,8.02543371]
[1609500924770,0.11081253,29294.0,29285.0,8.02543371]
[1609500924970,0.11081253,29294.0,29286.0,0.19]
[1609500925671,0.11081253,29294.0,29286.0,0.28144977]
[1609500925869,0.11081253,29294.0,29286.0,0.19]
[1609500926159,0.11081253,29294.0,29287.0,1.0]
[1609500926562,0.11081253,29294.0,29286.0,0.00038056]
[1609500929669,0.11081253,29294.0,29286.0,1.00038056]
[1609500929971,0.11081253,29294.0,29287.0,0.09144977]
[1609500930169,0.11081253,29294.0,29287.0,0.00038056]
[1609500930774,0.11081253,29294.0,29286.0,1.00038056]
[1609500930973,0.11081253,29294.0,29287.0,0.22]
[1609500931499,0.11081253,29294.0,29287.0,0.31183033]
[1609500931700,0.21452353,29294.0,29287.0,0.31183033]
[1609500931902,0.11081253,29294.0,29287.0,0.31183033]
[1609500932104,0.11081253,29294.0,29288.0,0.865]
[1609500932300,0.11081253,29294.0,29288.0,0.00038056]
[1609500933002,0.11081253,29294.0,29287.0,0.09183033]
[1609500934004,0.03081253,29294.0,29287.0,0.09183033]
[1609500934304,2.3,29293.0,29286.0,0.41083033]
[1609500934606,0.6811,29287.0,29285.0,6.56316404]
[1609500934912,5.646454,29286.0,29285.0,5.88186404]
[1609500935108,5.646454,29286.0,29285.0,5.87986404]
[1609500935299,5.646454,29286.0,29285.0,4.34646404]
[1609500935516,1.14,29284.0,29280.0,0.0002]
[1609500935710,1.14,29284.0,29264.0,0.0004]
[1609500936018,1.14,29284.0,29265.0,0.4659]
[1609500936019,0.798664,29280.0,29265.0,0.4659]
[1609500936211,0.43457,29280.0,29266.0,0.98540569]
[1609500936405,0.75307,29280.0,29266.0,0.98540569]
[1609500936708,0.2,29280.0,29267.0,3.85]
[1609500936939,0.12731,29287.0,29269.0,0.33180302]
[1609500937141,0.38940674,29287.0,29271.0,0.61668269]
[1609500937339,0.364133,29285.0,29273.0,0.33180302]
[1609500937643,0.364133,29285.0,29274.0,0.98540569]
[1609500938136,0.002,29280.0,29274.0,0.98540569]
[1609500938339,0.002,29280.0,29272.0,0.98577336]
[1609500938636,0.002,29280.0,29273.0,0.271517]
[1609500938940,2.4,29279.0,29267.0,0.271576]
[1609500939133,2.4,29279.0,29269.0,0.271562]
[1609500939438,0.002,29280.0,29271.0,0.27154]
[1609500939835,0.002,29280.0,29272.0,0.185]
[1609500940036,0.002,29280.0,29274.0,0.00785678]
[1609500940235,0.364126,29279.0,29274.0,0.00785678]
[1609500940432,0.37494467,29279.0,29274.0,0.00785678]
[1609500942314,0.37494467,29279.0,29277.0,0.6815]
[1609500944740,0.364126,29278.0,29277.0,0.6815]
[1609500945545,5.814126,29278.0,29274.0,0.00785678]
[1609500945751,0.364126,29275.0,29274.0,6.78e-06]
[1609500946051,0.98982384,29275.0,29258.0,0.00105676]
[1609500946263,0.39522784,29274.0,29258.0,0.00105676]
[1609500946462,0.364126,29273.0,29258.0,0.98646245]
[1609500946663,0.75935384,29273.0,29258.0,0.00105676]
[1609500946868,0.39522784,29272.0,29258.0,0.00105676]
[1609500947062,0.364126,29268.0,29258.0,0.00105676]
[1609500947268,0.65963747,29272.0,29258.0,0.00025676]
[1609500947269,0.364126,29263.0,29258.0,0.00025676]
[1609500947472,0.364126,29263.0,29257.0,0.00065676]
[1609500947473,5.814126,29258.0,29257.0,0.00065676]
[1609500947764,6.031216,29258.0,29257.0,0.00065676]
[1609500948360,6.691216,29258.0,29257.0,0.00065676]
[1609500949063,1.241216,29258.0,29257.0,0.00065676]
[1609500949362,2.991216,29258.0,29257.0,0.00065676]
[1609500949562,2.331216,29258.0,29257.0,0.00065676]
[1609500951071,2.331216,29258.0,29252.0,0.04886587]
[1609500951072,2.35,29257.0,29252.0,0.04886587]
[1609500951265,0.364126,29256.0,29252.0,0.04886587]
[1609500951991,0.155,29255.0,29252.0,0.04886587]
[1609500952191,0.07940963,29257.0,29252.0,1.03427156]
[1609500952395,0.07940963,29263.0,29253.0,0.26175]
[1609500952591,0.364126,29262.0,29252.0,0.04386587]
[1609500952791,0.44353563,29262.0,29252.0,1.02927156]
[1609500952992,0.50350563,29262.0,29253.0,0.155]
[1609500953187,0.56398563,29262.0,29252.0,0.04386587]
[1609500953388,0.56398563,29262.0,29252.0,1.02927156]
[1609500953889,0.19985963,29262.0,29252.0,0.04386587]
[1609500954190,0.544996,29261.0,29252.0,0.04386587]
[1609500954395,0.02,29258.0,29252.0,0.04386587]
[1609500954693,0.364126,29257.0,29252.0,0.04386587]
[1609500955089,0.364126,29257.0,29252.0,0.04421231]
[1609500958959,4.168316,29253.0,29252.0,0.04470293]
[1609500959162,4.768316,29253.0,29252.0,0.04435649]
[1609500959357,4.168316,29253.0,29252.0,0.04415649]
[1609500959556,4.168316,29253.0,29252.0,0.04035649]
[1609500959557,5.968316,29253.0,29252.0,0.04035649]
[1609500959859,7.09772563,29253.0,29252.0,0.03915649]
[1609500960057,7.09772563,29253.0,29252.0,0.03895649]
[1609500960259,5.95772563,29253.0,29252.0,0.03895649]
[1609500962058,4.90772563,29253.0,29252.0,0.03895649]
[1609500962259,5.30772563,29253.0,29252.0,0.03895649]
[1609500963184,5.70772563,29253.0,29252.0,0.03895649]
[1609500963585,5.30772563,29253.0,29252.0,0.03895649]
[1609500963984,1.25772563,29253.0,29252.0,0.03895649]
[1609500964287,0.364126,29253.0,29252.0,0.03895649]
[1609500965094,0.364126,29253.0,29252.0,0.23895649]
[1609500965991,0.259126,29253.0,29252.0,0.23895649]
[1609500966291,0.364177,29253.0,29252.0,0.23895649]
[1609500966692,0.37638178,29253.0,29252.0,0.23895649]
[1609500966945,0.01220478,29253.0,29252.0,1.58853918]
[1609500967239,0.02,29258.0,29256.0,0.98540569]
[1609500967448,0.7481,29271.0,29258.0,1.18540569]
[1609500967650,0.25458449,29274.0,29263.0,0.22421]
[1609500967844,0.25458449,29274.0,29263.0,1.57364569]
[1609500968049,0.32351992,29265.0,29264.0,0.98540569]
[1609500968348,0.32081992,29265.0,29264.0,6.86106069]
[1609500968549,0.22081979,29265.0,29264.0,7.94106069]
[1609500968744,0.22021979,29265.0,29264.0,7.94106069]
[1609500968940,0.22021979,29265.0,29264.0,7.92243169]
[1609500969648,0.002,29280.0,29264.0,7.92243169]
[1609500969847,0.002,29280.0,29265.0,2.74624097]
[1609500970049,0.002,29280.0,29267.0,0.53180302]
[1609500970245,0.002,29280.0,29269.0,0.33180302]
[1609500970453,0.002,29280.0,29271.0,0.53180302]
[1609500970683,0.002,29280.0,29273.0,0.73180302]
[1609500970989,0.364112,29279.0,29273.0,0.33180302]
[1609500971187,0.39309614,29278.0,29271.0,0.2]
[1609500971390,0.39309614,29277.0,29273.0,0.2]
[1609500971605,5.814112,29272.0,29271.0,0.00034644]
[1609500971800,0.364112,29268.0,29253.0,0.4647]
[1609500971989,5.214112,29264.0,29253.0,0.4647]
[1609500972191,5.60720814,29264.0,29250.0,0.9048]
[1609500972388,6.15720814,29264.0,29251.0,0.15539921]
[1609500972598,0.914112,29264.0,29251.0,0.15539921]
[1609500972886,0.364112,29264.0,29251.0,0.15539921]
[1609500975190,0.364112,29264.0,29253.0,0.00033949]
[1609500975396,1.35,29264.0,29252.0,0.364112]
[1609500975586,1.35,29264.0,29254.0,0.364112]
[1609500975787,1.35,29264.0,29256.0,0.364112]
[1609500975992,1.35,29264.0,29251.0,0.364112]
[1609500976192,1.4178,29271.0,29253.0,0.364112]
[1609500976426,0.364112,29269.0,29254.0,0.27296349]
[1609500976729,1.4178,29271.0,29254.0,0.27296349]
[1609500976730,0.6837,29271.0,29254.0,0.27296349]
[1609500977320,0.69452243,29271.0,29255.0,0.364112]
[1609500977524,1.42155894,29271.0,29256.0,0.27296349]
[1609500977822,0.364112,29270.0,29256.0,0.27296349]
[1609500978127,0.01082243,29271.0,29256.0,0.27296349]
[1609500978323,0.364112,29270.0,29256.0,0.27296349]
[1609500978627,0.01082243,29271.0,29256.0,0.27296349]
[1609500978822,0.364112,29270.0,29257.0,0.37673388]
[1609500979028,1.09114851,29270.0,29258.0,0.27296349]
[1609500979224,0.215,29269.0,29258.0,0.27296349]
[1609500980128,0.6723,29273.0,29259.0,1.564108]
[1609500980329,0.2991,29274.0,29268.0,0.363981]
[1609500980636,0.182033,29277.0,29270.0,0.363949]
[1609500980929,0.182033,29277.0,29273.0,0.33180302]
[1609500980930,0.11097411,29277.0,29273.0,0.33180302]
[1609500981128,0.07546031,29277.0,29276.0,4.363869]
[1609500981438,0.07546031,29277.0,29276.0,0.363869]
[1609500981623,0.04166044,29277.0,29276.0,3.23205298]
[1609500981835,0.0002,29282.0,29276.0,1.07049508]
[1609500982051,0.0002,29282.0,29277.0,0.33180302]
[1609500982249,0.0002,29282.0,29278.0,0.363835]
[1609500983146,0.0002,29282.0,29278.0,0.36416784]
[1609500984448,0.0002,29282.0,29280.0,0.363807]
[1609500984949,0.0002,29282.0,29275.0,0.23589616]
[1609500985456,0.0002,29282.0,29273.0,0.4395869]
[1609500985457,0.72703651,29281.0,29273.0,0.4395869]
[1609500985651,0.72703651,29281.0,29273.0,0.06898]
[1609500985854,0.72703651,29281.0,29269.0,0.00345614]
[1609500986055,0.72703651,29281.0,29270.0,1.2]
[1609500986342,0.364093,29280.0,29270.0,1.0]
[1609500986543,0.364093,29278.0,29270.0,1.0]
[1609500986846,0.364093,29276.0,29270.0,1.0]
[1609500987035,0.2556,29280.0,29270.0,1.0]
[1609500987238,0.364093,29279.0,29270.0,1.37296349]
[1609500987432,0.364093,29279.0,29270.0,1.0]
[1609500989044,0.99112951,29279.0,29270.0,1.0]
[1609500990245,0.62703651,29278.0,29270.0,0.985]
[1609500990443,0.364093,29277.0,29270.0,0.985]
[1609500990643,0.62703651,29277.0,29270.0,0.985]
[1609500990844,0.364093,29276.0,29270.0,0.985]
[1609500991250,0.33554128,29280.0,29270.0,0.985]
[1609500991481,0.99112951,29279.0,29270.0,0.985]
[1609500991678,0.62703651,29278.0,29270.0,0.985]
[1609500991873,0.364093,29277.0,29270.0,0.985]
[1609500992076,0.145,29276.0,29270.0,0.985]
[1609500992280,0.364093,29276.0,29270.0,0.985]
[1609500992482,0.33554128,29280.0,29270.0,0.985]
[1609500992678,0.99112951,29279.0,29270.0,0.985]
[1609500992879,0.33554128,29280.0,29270.0,0.985]
[1609500993081,0.33554128,29280.0,29270.0,1.35796349]
[1609500993278,0.33554128,29280.0,29270.0,0.985]
[1609500993486,0.33554128,29280.0,29271.0,0.41270736]
[1609500993684,0.33554128,29280.0,29271.0,0.51796349]
[1609500993884,0.33554128,29280.0,29268.0,0.46823476]
[1609500994086,0.33554128,29280.0,29269.0,1.57296349]
[1609500994282,0.33554128,29280.0,29270.0,0.26779733]
[1609500994481,0.33554128,29280.0,29269.0,1.0]
[1609500994684,0.33554128,29280.0,29270.0,0.26763726]
[1609500995184,0.33554128,29280.0,29271.0,1.37296349]
[1609500995686,0.33554128,29280.0,29272.0,0.00032612]
[1609500996080,0.33554128,29280.0,29273.0,0.205]
[1609500996281,0.33554128,29280.0,29273.0,0.20532612]
[1609500996485,0.99112951,29279.0,29273.0,0.00032612]
[1609500996690,0.62703651,29278.0,29273.0,0.00032612]
[1609500996887,0.364093,29277.0,29272.0,1.0]
[1609500997113,0.99112951,29277.0,29272.0,1.0]
[1609500997418,0.364093,29277.0,29268.0,0.00032612]
[1609500997619,0.15,29278.0,29264.0,0.56923544]
[1609500997817,0.15,29278.0,29265.0,0.74532895]
[1609500998118,0.39468128,29280.0,29266.0,0.74187281]
[1609500998317,0.33554128,29280.0,29267.0,1.74187281]
[1609500998516,0.33554128,29280.0,29268.0,1.03187281]
[1609500998720,0.002,29270.0,29269.0,0.74187281]
[1609500998917,0.002,29270.0,29269.0,2.04219893]
[1609500999317,0.002,29270.0,29269.0,2.24219893]
[1609500999517,0.002,29270.0,29269.0,2.24187281]
[1609500999716,0.002,29270.0,29269.0,2.76687281]
[1609501000120,0.002,29270.0,29269.0,2.56687281]
[1609501000760,0.33554128,29280.0,29271.0,0.28487967]
[1609501000955,0.33554128,29280.0,29272.0,0.855]
[1609501001254,0.33554128,29280.0,29272.0,1.47832177]
[1609501001766,0.33554128,29280.0,29272.0,1.1934421]
[1609501001961,0.33554128,29280.0,29273.0,0.00032612]
[1609501002561,0.33534128,29280.0,29273.0,0.00032612]
[1609501002769,0.33534128,29280.0,29272.0,0.00032612]
[1609501003069,0.33534128,29280.0,29272.0,1.00032612]
[1609501003274,0.33534128,29280.0,29273.0,0.225]
[1609501004067,0.33534128,29280.0,29273.0,0.22532612]
[1609501004374,0.33534128,29280.0,29273.0,0.96719893]
[1609501004569,0.33534128,29280.0,29274.0,0.295]
[1609501004773,0.33534128,29280.0,29274.0,0.29532612]
[1609501005276,0.33534128,29280.0,29274.0,0.295]
[1609501005470,0.33534128,29280.0,29275.0,0.3384421]
[1609501005774,0.33534128,29280.0,29276.0,0.205]
[1609501006698,0.33534128,29280.0,29273.0,0.00032612]
[1609501006896,0.33534128,29280.0,29274.0,1.0]
[1609501007096,0.33534128,29280.0,29275.0,0.3384421]
[1609501007298,0.33534128,29280.0,29274.0,1.0]
[1609501007498,0.33534128,29280.0,29276.0,0.16]
[1609501007894,0.33534128,29280.0,29276.0,0.16032612]
[1609501008096,0.30514128,29280.0,29276.0,0.16032612]
[1609501008498,0.29904128,29280.0,29276.0,0.16032612]
[1609501008803,0.29784128,29280.0,29277.0,0.22]
[1609501009000,0.29784128,29280.0,29277.0,0.10206774]
[1609501009198,0.29764128,29280.0,29277.0,0.10206774]
[1609501009398,0.11434128,29280.0,29277.0,0.10206774]
[1609501009601,0.11434128,29280.0,29277.0,0.10174162]
[1609501010197,0.07774128,29280.0,29277.0,0.10174162]
[1609501010403,0.07034128,29280.0,29277.0,0.10174162]
[1609501010802,0.06894128,29280.0,29277.0,0.10174162]
[1609501011199,0.06864128,29280.0,29277.0,0.10174162]
[1609501014132,0.06364128,29280.0,29277.0,0.10174162]
[1609501017002,0.06364128,29280.0,29278.0,1.0]
[1609501017603,0.06364128,29280.0,29279.0,0.3384421]
[1609501018012,0.06364128,29280.0,29278.0,1.00032612]
[1609501018613,0.06364128,29280.0,29278.0,1.0]
[1609501019811,0.06364128,29280.0,29279.0,0.3384421]
[1609501020012,0.06364128,29280.0,29278.0,1.0]
[1609501020211,0.05024128,29280.0,29278.0,1.0]
[1609501020413,0.04754128,29280.0,29279.0,3.175]
[1609501020715,0.04704128,29280.0,29279.0,0.5134421]
[1609501020913,0.04704128,29280.0,29279.0,0.175]
[1609501021115,0.04704128,29280.0,29279.0,0.5134421]
[1609501021315,0.04704128,29280.0,29279.0,0.175]
[1609501021739,0.04704128,29280.0,29279.0,1.9634421]
[1609501021938,0.04704128,29280.0,29279.0,0.5134421]
[1609501022144,0.67407779,29280.0,29279.0,0.5134421]
[1609501022448,1.114093,29279.0,29278.0,1.0]
[1609501022645,1.74112951,29279.0,29272.0,0.00032612]
[1609501022850,0.364093,29277.0,29272.0,1.00032612]
[1609501023147,0.99112951,29277.0,29272.0,1.0]
[1609501023648,0.62703651,29276.0,29272.0,1.0]
[1609501023846,0.364093,29275.0,29272.0,1.0]
[1609501024044,2.214093,29273.0,29272.0,1.0]
[1609501024250,2.84112951,29273.0,29265.0,0.00032612]
[1609501024447,0.364093,29271.0,29266.0,1.0]
[1609501024948,0.04719,29272.0,29266.0,1.0]
[1609501025148,0.364093,29271.0,29266.0,1.0]
[1609501025943,0.99112951,29271.0,29266.0,1.0]
[1609501026144,0.99112951,29271.0,29263.0,0.00032612]
[1609501026350,0.364093,29270.0,29262.0,1.0]
[1609501026954,0.364093,29269.0,29262.0,1.0]
[1609501027161,0.155,29269.0,29262.0,1.0]
[1609501027363,0.04719,29272.0,29262.0,1.0]
[1609501027563,0.99112951,29271.0,29262.0,1.0]
[1609501027867,0.04719,29272.0,29262.0,1.0]
[1609501028271,0.04719,29272.0,29263.0,0.37296349]
[1609501028468,0.04719,29272.0,29264.0,0.205]
[1609501028664,0.04719,29272.0,29264.0,0.37296349]
[1609501028969,0.01082066,29271.0,29264.0,0.37296349]
[1609501032141,0.62703651,29278.0,29265.0,5.45]
[1609501032349,2.01534391,29279.0,29266.0,1.09828961]
[1609501032647,0.364093,29278.0,29267.0,0.37296349]
[1609501032861,0.364093,29278.0,29267.0,0.37328961]
[1609501033255,0.364093,29278.0,29267.0,0.00032612]
[1609501033464,0.99112951,29278.0,29268.0,0.35]
[1609501033661,0.99112951,29278.0,29266.0,0.00032612]
[1609501033859,0.62703651,29278.0,29266.0,0.57328961]
[1609501034162,1.3883074,29279.0,29267.0,0.57296349]
[1609501034361,1.3883074,29279.0,29268.0,0.37296349]
[1609501034598,1.3883074,29279.0,29269.0,0.14]
[1609501035462,1.3883074,29279.0,29270.0,0.37296349]
[1609501035860,1.3883074,29279.0,29270.0,0.37328961]
[1609501036065,1.3883074,29279.0,29271.0,0.37296349]
[1609501036471,1.3883074,29279.0,29271.0,0.73622485]
[1609501036676,1.3705074,29279.0,29272.0,0.75904349]
[1609501036876,1.3670074,29279.0,29273.0,0.37296349]
[1609501037079,0.04204128,29280.0,29273.0,0.37296349]
[1609501037279,0.04134128,29280.0,29274.0,0.35967816]
[1609501037489,0.03134128,29280.0,29275.0,0.37296349]
[1609501037682,0.03114128,29280.0,29276.0,0.43967816]
[1609501037879,0.03114128,29280.0,29277.0,0.88264165]
[1609501038083,0.03114128,29280.0,29278.0,0.93300165]
[1609501038277,0.03114128,29280.0,29279.0,6.13264165]
[1609501038477,0.03114128,29280.0,29279.0,6.21264165]
[1609501038694,0.0004,29289.0,29280.0,6.02332177]
[1609501038885,0.0004,29289.0,29281.0,1.15018421]
[1609501039083,0.0004,29289.0,29282.0,0.00032612]
[1609501039385,0.0004,29289.0,29283.0,0.3384421]
[1609501039587,0.0004,29289.0,29283.0,0.69244072]
[1609501039779,0.0004,29289.0,29283.0,0.97764651]
[1609501040382,0.0004,29289.0,29284.0,1.32332072]
[1609501040584,0.0004,29289.0,29284.0,0.98520474]
[1609501040781,0.0004,29289.0,29284.0,0.58464822]
[1609501040983,0.0004,29289.0,29284.0,0.24620612]
[1609501041380,0.0004,29289.0,29284.0,0.93864684]
[1609501041583,0.0004,29289.0,29285.0,0.21]
[1609501041780,0.0004,29289.0,29286.0,1.3384421]
[1609501041981,0.0004,29289.0,29287.0,3.0384421]
[1609501042600,0.0004,29289.0,29287.0,1.3384421]
[1609501042800,0.0004,29289.0,29287.0,1.5834421]
[1609501044117,0.0004,29289.0,29287.0,1.245]
[1609501044906,0.62723651,29288.0,29287.0,1.245]
[1609501045112,0.99132951,29288.0,29287.0,1.245]
[1609501045310,0.99132951,29288.0,29287.0,0.999056]
[1609501045516,0.364093,29287.0,29284.0,0.999056]
[1609501045713,0.2,29286.0,29284.0,0.999056]
[1609501045917,0.564093,29286.0,29285.0,0.999056]
[1609501046472,0.364093,29286.0,29282.0,0.10186977]
[1609501046773,0.0002,29288.0,29283.0,0.999056]
[1609501046774,0.364093,29285.0,29283.0,0.999056]
[1609501046970,0.364093,29285.0,29284.0,0.999056]
[1609501047278,0.0002,29288.0,29280.0,0.999056]
[1609501047470,0.99112951,29287.0,29280.0,0.999056]
[1609501047675,0.62703651,29286.0,29281.0,0.999056]
[1609501047886,0.364093,29285.0,29282.0,0.999056]
[1609501048092,0.364093,29285.0,29283.0,0.999056]
[1609501048286,0.0002,29288.0,29284.0,0.999056]
[1609501048494,0.364093,29285.0,29275.0,0.00032612]
[1609501048691,0.364093,29285.0,29276.0,0.999056]
[1609501048886,0.364093,29285.0,29277.0,0.999056]
[1609501049090,0.62703651,29287.0,29273.0,0.00032612]
[1609501049091,0.0002,29288.0,29278.0,0.999056]
[1609501049288,0.0002,29288.0,29279.0,0.999056]
[1609501049486,0.62723651,29288.0,29280.0,0.175]
[1609501049797,0.364093,29287.0,29281.0,0.999056]
[1609501049987,0.99112951,29287.0,29281.0,0.999056]
[1609501050288,0.364093,29287.0,29282.0,0.999056]
[1609501050488,0.364093,29287.0,29283.0,0.999056]
[1609501050684,0.364093,29287.0,29284.0,0.999056]
[1609501050890,0.364093,29287.0,29285.0,0.999056]
[1609501051089,0.364093,29287.0,29286.0,0.999056]
[1609501051509,0.364093,29287.0,29280.0,0.999056]
[1609501051715,0.364093,29287.0,29281.0,0.999056]
[1609501051912,0.364093,29287.0,29282.0,0.999056]
[1609501052111,0.364093,29287.0,29283.0,0.999056]
[1609501052413,0.364093,29287.0,29284.0,0.999056]
[1609501052610,0.364093,29287.0,29285.0,0.999056]
[1609501052812,0.364093,29287.0,29286.0,0.999056]
[1609501053112,0.364093,29287.0,29280.0,0.999056]
[1609501053525,0.364093,29287.0,29281.0,0.999056]
[1609501053826,0.364093,29287.0,29282.0,0.999056]
[1609501054024,0.364093,29287.0,29283.0,0.999056]
[1609501054223,0.364093,29287.0,29284.0,0.999056]
[1609501054426,0.364093,29286.0,29285.0,0.999056]
[1609501054827,0.364093,29286.0,29279.0,0.999056]
[1609501055025,0.364093,29286.0,29280.0,1.164056]
[1609501055258,0.364093,29286.0,29281.0,0.999056]
[1609501055459,0.364093,29286.0,29282.0,0.999056]
[1609501055659,0.364093,29286.0,29283.0,0.999056]
[1609501055861,0.364093,29287.0,29284.0,0.999056]
[1609501056165,0.33073304,29286.0,29285.0,0.999056]
[1609501056363,0.33073304,29286.0,29279.0,0.00032612]
[1609501056563,0.33073304,29286.0,29280.0,0.999056]
[1609501056958,0.33073304,29286.0,29281.0,0.999056]
[1609501057163,0.33073304,29286.0,29282.0,0.999056]
[1609501057558,0.33073304,29286.0,29283.0,0.999056]
[1609501057759,0.33073304,29286.0,29279.0,0.999056]
[1609501058160,0.33073304,29286.0,29280.0,0.999056]
[1609501058359,0.33073304,29286.0,29281.0,0.999056]
[1609501058662,0.33073304,29286.0,29282.0,0.999056]
[1609501058860,0.364093,29285.0,29283.0,0.999056]
[1609501059066,0.364093,29285.0,29284.0,0.999056]
[1609501059568,0.33073304,29286.0,29279.0,0.999056]
[1609501059864,0.33073304,29286.0,29280.0,0.165]
[1609501060161,0.33073304,29286.0,29281.0,0.999056]
[1609501060884,0.33073304,29286.0,29281.0,0.99938212]
[1609501061188,0.33073304,29286.0,29282.0,0.999056]
[1609501061387,0.33073304,29286.0,29282.0,0.99938212]
[1609501061633,0.33073304,29286.0,29283.0,0.999056]
[1609501062028,0.33073304,29286.0,29284.0,0.999056]
[1609501062229,0.364093,29285.0,29278.0,0.00032612]
[1609501062432,0.33073304,29286.0,29279.0,0.999056]
[1609501062629,0.33073304,29286.0,29280.0,1.164056]
[1609501062839,0.364093,29285.0,29281.0,0.999056]
[1609501063136,0.364093,29285.0,29282.0,0.999056]
[1609501063332,0.364093,29285.0,29283.0,0.999056]
[1609501063534,0.364093,29285.0,29279.0,0.999056]
[1609501063733,0.364093,29285.0,29280.0,0.999056]
[1609501064038,0.364093,29285.0,29281.0,0.999056]
[1609501064335,0.364093,29285.0,29282.0,0.999056]
[1609501064537,0.364093,29285.0,29283.0,0.999056]
[1609501064736,0.364093,29285.0,29284.0,0.999056]
[1609501065537,0.33073304,29286.0,29279.0,0.999056]
[1609501065735,0.364093,29284.0,29279.0,0.999056]
[1609501066037,0.364093,29284.0,29280.0,0.999056]
[1609501066235,0.364093,29284.0,29281.0,0.999056]
[1609501066433,0.364093,29284.0,29279.0,0.999056]
[1609501066864,0.364093,29284.0,29280.0,0.999056]
[1609501067062,0.364093,29284.0,29281.0,0.999056]
[1609501067260,0.364093,29284.0,29282.0,0.999056]
[1609501067463,0.364093,29284.0,29283.0,0.999056]
[1609501067660,0.364093,29284.0,29279.0,0.999056]
[1609501067866,0.364093,29284.0,29280.0,0.999056]
[1609501068163,0.364093,29284.0,29281.0,0.999056]
[1609501068361,0.364093,29284.0,29282.0,0.999056]
[1609501068561,0.364093,29284.0,29283.0,0.999056]
[1609501068766,0.364093,29284.0,29280.0,0.99938212]
[1609501068962,0.364093,29284.0,29281.0,0.999056]
[1609501072585,0.364093,29284.0,29281.0,0.97877798]
[1609501072986,0.363893,29284.0,29281.0,0.97877798]
[1609501073187,0.363893,29284.0,29282.0,0.16]
[1609501073388,0.363893,29284.0,29283.0,0.97877798]
[1609501073688,0.363893,29284.0,29281.0,0.97877798]
[1609501073886,0.363893,29284.0,29282.0,0.97877798]
[1609501074087,0.363893,29284.0,29283.0,0.97877798]
[1609501074589,0.33073304,29286.0,29281.0,0.97877798]
[1609501074789,0.33053304,29286.0,29282.0,0.21]
[1609501075089,0.364092,29285.0,29283.0,0.97877798]
[1609501076572,0.364092,29285.0,29284.0,0.97877798]
[1609501077077,0.33053304,29286.0,29281.0,0.97877798]
[1609501077676,0.33053304,29286.0,29282.0,0.97877798]
[1609501077887,0.364092,29285.0,29283.0,0.97877798]
[1609501078085,0.364092,29285.0,29284.0,0.97877798]
[1609501078784,0.364092,29285.0,29282.0,0.97877798]
[1609501083017,0.364092,29285.0,29283.0,0.97877798]
[1609501083314,0.364092,29285.0,29284.0,0.97877798]
[1609501083519,0.364092,29285.0,29281.0,0.97877798]
[1609501083716,0.363892,29285.0,29281.0,0.97877798]
[1609501083914,0.363892,29285.0,29282.0,0.97877798]
[1609501084117,0.363892,29285.0,29283.0,0.97877798]
[1609501084315,0.363892,29285.0,29284.0,0.97877798]
[1609501084717,0.363892,29285.0,29280.0,0.9791041]
[1609501084919,0.363892,29285.0,29281.0,0.97877798]
[1609501085618,0.363892,29285.0,29282.0,0.97877798]
[1609501085818,0.363892,29285.0,29283.0,0.97877798]
[1609501086018,0.363892,29285.0,29284.0,0.97877798]
[1609501086220,0.363892,29285.0,29279.0,0.97877798]
[1609501086421,0.363892,29285.0,29280.0,0.21]
[1609501086621,0.363892,29285.0,29281.0,0.97877798]
[1609501088852,0.363892,29285.0,29281.0,0.97007216]
[1609501093223,0.363892,29285.0,29282.0,0.97007216]
[1609501093423,0.363892,29285.0,29283.0,0.97007216]
[1609501093623,0.363892,29285.0,29284.0,0.97007216]
[1609501094226,0.363892,29285.0,29281.0,0.97007216]
[1609501094624,0.363892,29285.0,29282.0,0.97007216]
[1609501094823,0.363892,29285.0,29283.0,0.97007216]
[1609501095026,0.37470667,29285.0,29284.0,0.97007216]
[1609501095327,0.37470667,29285.0,29284.0,0.96571925]
[1609501095527,0.37470667,29285.0,29280.0,0.96571925]
[1609501096323,0.37470667,29285.0,29281.0,0.19]
[1609501096527,0.37470667,29285.0,29282.0,0.96571925]
[1609501096749,0.37470667,29285.0,29279.0,0.3322711]
[1609501096750,0.37470667,29285.0,29283.0,0.96571925]
[1609501096948,0.37470667,29285.0,29284.0,0.96571925]
[1609501097151,1.00174318,29285.0,29284.0,0.96571925]
[1609501097355,1.19674318,29285.0,29280.0,0.96571925]
[1609501097664,4.164092,29281.0,29280.0,0.96571925]
[1609501097857,4.87203651,29281.0,29279.0,0.96572]
[1609501098056,4.04112851,29280.0,29279.0,0.96572]
[1609501098352,0.809092,29280.0,29279.0,0.96572]
[1609501098552,0.364092,29280.0,29279.0,0.96572]
[1609501098758,1.164092,29280.0,29279.0,0.96572]
[1609501098951,0.364092,29280.0,29279.0,0.96572]